{"text_format":"1","workbook":"xlsx","n_sheets":2,"sheets":["Календарь старый","Смета № 7 АСУ"],"not_rendered":{"charts":0,"images":0,"macros":1,"external_links":0,"defined_names":13,"comments":0,"pivot_tables":0},"unopened":[],"bounds":{"document_bytes":16777216,"sheet_cells":100000,"rows_first":2000,"rows_last":500,"rows_between":2000,"halvings":0,"cell_chars":16384,"cell_head_chars":4096},"cells_cut":0,"cells_raw":0,"read":"whole","date_system":"1900"}

{"sheet":"Календарь старый","index":0,"n_rows":139,"n_cols":7,"rows_kept":139,"cut":false,"hidden":true,"merged":[[127,0,127,1],[0,4,2,6],[3,0,3,6],[4,0,4,6],[6,0,6,6],[12,0,13,0],[12,1,13,1],[12,2,12,3],[12,4,12,6]]}
[null,null,null,null,"Приложение №2                                                                                                                                                                                   \nк Договору №8190____________                  \nот \"_____\" _____________2013г."]
[]
[]
["Календарный план"]
["на выполнение проектно-изыскательских работ:"]
[]
[]
[]
["Наименование проектной организации                 "]
[]
["Наименование организации заказчика                 ",null,null,"ООО \"Газпромнефть-Развитие\""]
[]
["№ этапа","Наименование этапов","Срок выполнения работ ",null,"Расчетная цена"]
[null,null,"Начало","Окончание","руб.без НДС","НДС 18%","руб.с НДС"]
["1.","Инженерные изыскания","2013-03-01","2013-08-05"]
["1.1","Инженерные изыскания на линейные объекты (нефтепровод, ВЛ)","2013-03-01","2013-06-15"]
["1.1.1","Мобилизация","2013-03-04","2013-03-20",{"$f":"#REF!","v":{"$error":"#REF!"}}]
["1.1.2","ПВО ","2013-03-11","2013-04-01"]
["1.1.3","Полевые изыскания (Топографическая съемка М 1:2000, М 1:500 закрепление проектных трасс на местности, с шириной полосы 120м.)","2013-03-11","2013-05-15"]
["1.1.4","Камеральная обработка полевых материалов, промежуточные инженерно-геодезические отчёты","2013-04-22","2013-05-10"]
["1.1.5","Инженерно-геологические изыскания ","2013-03-20","2013-05-15"]
["1.1.6","Инженерно-экологические изыскания ","2013-03-20","2013-05-15"]
["1.1.7","Выполнение лабораторных работ","2013-04-21","2013-05-20"]
["1.1.8","Историко-культурные изыскания ","2013-04-01","2013-05-15"]
["1.1.9","Камеральная обработка материалов, написание отчета по ИИ.","2013-04-21","2013-06-15"]
["1.2","Инженерные изыскания (площадка ПСП, изыскания источников водоснабжения).","2013-03-01","2013-06-03"]
["1.2.1","Мобилизация","2013-03-04","2013-03-20"]
["1.2.2","ПВО (ПСП)","2013-03-11","2013-04-01"]
["1.2.3","Полевые изыскания (Топографическая съемка М 1:2000, М 1:500 закрепление проектных трасс на местности, с шириной полосы 120м.)","2013-03-11","2013-05-15"]
["1.2.4","Камеральная обработка полевых материалов, промежуточные инженерно-геодезические отчёты","2013-04-22","2013-05-10"]
["1.2.5","Инженерные геологические изыскания ","2013-03-20","2013-05-15"]
["1.2.6","Инженерно-экологические изыскания ","2013-03-20","2013-05-15"]
["1.2.7","Изыскания источников водоснабжения (водозаборные скважины)","2013-04-01","2013-04-21"]
["1.2.8","Выполнение лабораторных работ","2013-04-21","2013-05-20"]
["1.2.9","Камеральная обработка материалов, написание отчета по ИИ.","2013-04-21","2013-06-03"]
["1.3","Инженерные изыскания (карьеры).","2013-03-01","2013-08-05"]
["1.3.1","Мобилизация","2013-03-04","2013-03-20"]
["1.3.2","ПВО ","2013-03-11","2013-04-01"]
["1.3.3","Полевые изыскания (Топографическая съемка М 1:2000, М 1:500 закрепление проектных трасс на местности, с шириной полосы 120м.)","2013-03-11","2013-05-15"]
["1.3.4","Камеральная обработка полевых материалов, промежуточные инженерно-геодезические отчёты","2013-04-22","2013-05-10"]
["1.3.5","Инженерные геологические изыскания ","2013-03-20","2013-05-15"]
["1.3.6","Инженерно-экологические изыскания ","2013-03-20","2013-05-15"]
["1.3.7","Выполнение лабораторных работ","2013-04-21","2013-05-20"]
["1.3.8","Камеральная обработка материалов, написание отчета по ИИ.","2013-04-21","2013-06-03"]
["1.3.9","Подсчёт запасов ОПИ","2013-06-04","2013-07-08"]
["1.3.10","Постановка на учёт запасов ОПИ","2013-07-08","2013-08-05"]
["2. ","Подготовка, оформление, согласование и утверждение комплекса землеустроительной документации","2013-01-21","2013-07-01"]
["2.1.","ЗУР на напорный нефтепровод"]
["2.1.1","Организация  проведения общественных слушаний (в т.ч. Информационное обеспечение, публикация в СМИ )"]
["2.1.2","Получении сопутствующих заключений к проекту, историко-культурная экспертиза, расчет убытков землепользователей"]
["2.1.3","Оформление и утверждение акта выбора земель. Получение распоряжения постановления о предварительном согласовании размещения ЗУ"]
["2.1.4","Оформление и утверждение акта выбора земель (карьеры). Получение распоряжения постановления о предварительном согласовании размещения ЗУ"]
["2.1.5","Заключение договора с  районным отделением Ассоциации коренных малочисленных народов Севера                   "]
["2.1.6","Постановка земельных участков на ГКУ"]
["2.1.7","Перевод земель иных категорий в земли промышленности"]
["2.1.8","Внесение изменений в ГКУ и формирование земдела"]
["2.1.9","Оформление распоряжения главы района о предоставлении земельных участков и договоров аренды земельных участков"]
["2.1.10","Оформление и утверждение градостроительных планов"]
["2.1.11","Оформление, согласование и регистрация договора аренды"]
["2.2.","ЗУР на ПСП"]
["2.2.1","Организация  проведения общественных слушаний (в т.ч. Информационное обеспечение, публикация в СМИ )"]
["2.2.2","Получении сопутствующих заключений к проекту, историко-культурная экспертиза, расчет убытков землепользователей"]
["2.2.3","Оформление и утверждение акта выбора земель. Получение распоряжения постановления о предварительном согласовании размещения ЗУ"]
["2.2.4","Оформление и утверждение акта выбора земель. Получение распоряжения постановления о предварительном согласовании размещения ЗУ"]
["2.2.5","Заключение договора с  районным отделением Ассоциации коренных малочисленных народов Севера                   "]
["2.2.6","Постановка земельных участков на ГКУ"]
["2.2.7","Перевод земель иных категорий в земли промышленности"]
["2.2.8","Внесение изменений в ГКУ и формирование земдела"]
["2.2.9","Оформление распоряжения главы района о предоставлении земельных участков и договоров аренды земельных участков"]
["2.2.10","Оформление и утверждение градостроительных планов"]
["2.2.11","Оформление, согласование и регистрация договора аренды"]
["2.3.","ЗУР на карьеры"]
["2.3.1","Организация  проведения общественных слушаний (в т.ч. Информационное обеспечение, публикация в СМИ )"]
["2.3.2","Получении сопутствующих заключений к проекту, историко-культурная экспертиза, расчет убытков землепользователей"]
["2.3.3","Оформление и утверждение акта выбора земель. Получение распоряжения постановления о предварительном согласовании размещения ЗУ"]
["2.3.4","Оформление и утверждение акта выбора земель. Получение распоряжения постановления о предварительном согласовании размещения ЗУ"]
["2.3.5","Заключение договора с  районным отделением Ассоциации коренных малочисленных народов Севера                   "]
["2.3.6","Постановка земельных участков на ГКУ"]
["2.3.7","Перевод земель иных категорий в земли промышленности"]
["2.3.8","Внесение изменений в ГКУ и формирование земдела"]
["2.3.9","Оформление распоряжения главы района о предоставлении земельных участков и договоров аренды земельных участков"]
["2.3.10","Оформление и утверждение градостроительных планов"]
["2.3.11","Оформление, согласование и регистрация договора аренды"]
["3.","Проектная документация","2013-02-25","2014-03-28"]
["3.1.","Сбор и подготовка исходных данных","2013-02-25","2013-03-29"]
["3.1.1","Подготовка запросов и получение исходных данных","2013-02-25","2013-03-29"]
["3.2.","ОТР","2013-02-25","2013-06-10"]
["3.2.1","Основные технические решения нефтепровод","2013-02-25","2013-05-27"]
["3.2.2","Основные технические решения ПСП","2013-02-25","2013-06-10"]
["3.3.","Проектная документация карьеры","2013-06-05","2014-01-24"]
["3.3.1","Проектная документация карьеры","2013-06-05","2013-10-25"]
["3.3.2","Регистрация карьеров в РГТН","2013-10-28","2014-01-24"]
["3.4.","Проектная документация напорный нефтепровод","2013-06-15","2014-01-24"]
["3.4.1","Проектная документация напорный нефтепровод (оплата 60%)","2013-06-15","2013-10-25"]
["3.4.2","Проектная документация напорный нефтепровод (оплата 40%)","2013-10-28","2014-01-24"]
["3.5.","Проектная документация ПСП","2013-06-03","2014-01-24"]
["3.5.1","Проектная документация ПСП (оплата 60%)","2013-06-03","2013-10-25"]
["3.5.2","Проектная документация ПСП (оплата 40%)","2013-10-28","2014-01-24"]
["3.6.","Сборник ОЛ и предварительных спецификаций","2013-08-01","2013-09-02"]
["3.7.","Метрологическая экспертиза ","2013-09-02","2014-01-24"]
["3.8.","Согласование проектной документации с АК \"Транснефть\"","2013-11-04","2014-12-20"]
["3.9.","Проведение процедуры HAZOP","2013-10-15","2013-12-20"]
["3.10.","Проведение государственной экспертизы проектной документации ","2014-01-27","2014-03-28"]
["3.11.","Сопровождение ПД на экспертизу","2014-01-27","2014-03-28"]
["3.12.","Командировочные расходы ","2013-03-01","2014-03-28"]
["4.","Рабочая документация","2013-11-04","2014-03-28"]
["4.1","Напорный нефтепровод, ВЛ","2013-11-04","2014-03-28"]
["4.1.1","Напорный нефтепровод","2013-11-04","2014-03-28"]
["4.1.2","ВЛ","2013-11-04","2014-03-28"]
["4.2","ПСП","2013-11-04","2014-03-28"]
["4.2.1","технология 1 часть ( 25% уточняется по факту).                                                        Резервуарный парк, насосная внешней откачки","2013-11-04","2013-12-23"]
["4.2.2","технология 2 часть ( 25% уточняется по факту)                                                         Пункт подогрева нефти, СИКН,  площадка под фильтры грязеуловители, узел с предохранительными устройствами, узел регулирования давления, резервуары-накопители подтоварной воды, аварийные резервуары, резервуары для хранения топлива,                                                                     ","2013-12-24","2014-01-20"]
["4.2.3","технология 3 часть ( 25% уточняется по факту)                                                          Насосная станция пожаротушения, резервуары противопожарного запаса, КНС, насосная станция хоз.-питевого водоснабжения, котельная, пож.депо, станция очистки производственно-дождевых сточных вод","2014-01-21","2014-02-24"]
["4.2.4","технология 4 часть ( 25% уточняется по факту)                                                           Сети технологические, лаборатории, операторная,открытая и закрытая стоянка техники, служебно-бытовой корпус ","2014-02-25","2014-03-28"]
["4.2.5","ГП","2020-11-04","2014-03-28"]
["4.2.6","Электроснабжение","2020-11-04","2014-03-28"]
["4.2.7","Термостабилизация грунтов оснований","2013-11-04","2013-12-20"]
["4.2.8","АСУ ТП","2020-11-04","2014-03-28"]
["4.2.9","Связь","2020-11-04","2014-03-28"]
["4.2.10","Комплексная система безопасности (с/п ДОАО \"Газпроектинжиниринг\")","2020-11-04","2014-02-21"]
["4.2.11","ПЛА (напорный нефтепровод)","2013-12-09","2014-03-28"]
["4.2.12","ПЛА (ПСП)","2013-12-09","2014-03-28"]
["4.2.13","ПЛАРН (напорный нефтепровод)","2013-12-09","2014-03-28"]
["4.2.14","ПЛАРН (ПСП)","2013-12-09","2014-03-28"]
["4.2.15","Технологические регламенты (напорный нефтепровод)","2013-08-16","2014-02-23"]
["4.2.16","Технологические регламенты (ПСП)","2013-08-16","2014-02-23"]
[]
["Итого:",null,null,null,{"$f":"SUM(E15:E127)","v":{"$error":"#REF!"}},{"$f":"SUM(F15:F127)","v":0},0]
[]
[]
["Главный инженер проекта"]
[]
[]
["Генподрядчик:",null,null,null,"Подрядчик:"]
["Генеральный директор",null,null,null,"Управляющий директор"]
["ООО \"Газпромнефть-Развитие\""]
[]
[]
["______________  Д.А. Сугаипов"]

{"sheet":"Смета № 7 АСУ","index":1,"n_rows":135,"n_cols":20,"rows_kept":135,"cut":false,"hidden":false,"merged":[[26,0,26,1],[0,0,0,7],[1,0,1,7],[3,1,3,7],[9,0,9,7],[10,0,10,2],[10,3,10,5],[10,6,10,7],[11,3,12,5],[11,6,12,7],[14,0,14,7],[15,0,16,1],[15,2,15,7],[28,0,28,1],[34,2,34,3],[34,4,34,5],[34,6,34,7],[35,2,35,3],[35,4,35,5],[35,6,35,7],[36,2,36,3],[36,4,36,5],[36,6,36,7],[37,2,37,3],[37,4,37,5],[37,6,37,7],[74,13,75,13],[74,14,74,19],[39,4,39,5],[39,6,39,7],[40,4,40,5],[40,6,40,7],[41,4,41,5],[41,6,41,7]]}
["Смета"]
["на проектные работы"]
[]
["Вид работ","АСУ ТП "]
[]
["Наименование проектной организации"]
[]
["Наименование заказчика"]
[]
["Коэффициенты к установленным ценам "]
["Примененный Коэффициент",null,null,"Расчет коэффициента",null,null,"Итого коэффициент"]
["K1","=",0.7,{"$f":"C12&\"*\"&C13","v":"0,7*1,3"},null,null,{"$f":"C12*C13","v":0.90999999999999992}]
["K10.1","=",1.3]
[]
["Трудоемкость разработки проектной документации на АСУТП "]
["Основные факторы, определяющие трудоемкость разработки",null,"Количество баллов для частей проектной документации (Бч)"]
[null,null,"ОР","ОО","ИО","ТО","МО","ПО"]
["Характеристика процесса (Ф2):","Непрерывный",{"$f":"INDEX($N$78:$T$135,MATCH(B18,$N$78:$N$135,0),2)","v":1},{"$f":"INDEX($N$78:$T$135,MATCH(B18,$N$78:$N$135,0),3)","v":1},{"$f":"INDEX($N$78:$T$135,MATCH(B18,$N$78:$N$135,0),4)","v":1},{"$f":"INDEX($N$78:$T$135,MATCH(B18,$N$78:$N$135,0),5)","v":1},{"$f":"INDEX($N$78:$T$135,MATCH(B18,$N$78:$N$135,0),6)","v":1},{"$f":"INDEX($N$78:$T$135,MATCH(B18,$N$78:$N$135,0),7)","v":1}]
["Кол-во тех. операций (Ф5):","до 5",{"$f":"INDEX($N$78:$T$135,MATCH(B19,$N$78:$N$135,0),2)","v":1},{"$f":"INDEX($N$78:$T$135,MATCH(B19,$N$78:$N$135,0),3)","v":1},{"$f":"INDEX($N$78:$T$135,MATCH(B19,$N$78:$N$135,0),4)","v":1},{"$f":"INDEX($N$78:$T$135,MATCH(B19,$N$78:$N$135,0),5)","v":1},{"$f":"INDEX($N$78:$T$135,MATCH(B19,$N$78:$N$135,0),6)","v":1},{"$f":"INDEX($N$78:$T$135,MATCH(B19,$N$78:$N$135,0),7)","v":1}]
["Степень развитости информационных функций (Ф6):","I степень",1,1,1,1,1,1]
["Степень развитости управляющих функций (Ф7):","I степень",1,1,1,1,1,1]
["Режим выполнения управляющих функций (Ф8):","Автоматизированный диалоговый режим",2,2,2,2,3,3]
["Количество переменных, измеряемых, контролируемых и регистрируемых АСУТП (Ф9):","до 20",1,1,1,1,1,1]
["Количество управляющих воздействий, вырабатываемых АСУТП (Ф10):","до 5",1,1,1,1,1,1]
["Итого баллов",null,{"$f":"SUM(C18:C24)","v":8},{"$f":"SUM(D18:D24)","v":8},8,8,9,9]
["Стоимость 1 балла",null,2.04,1.24,1.83,4.38,4.92,6]
["Базовая цена двухстадийной разработки проектной документации на АСУТП, тыс.руб.",null,{"$f":"C25*C26","v":16.32},9.92,14.64,35.04,44.28,54]
["Примененный коэффициент к установленным ценам",null,{"$f":"$G$12","v":0.90999999999999992},0.90999999999999992,0.90999999999999992,0.90999999999999992,0.90999999999999992,0.90999999999999992]
["Итого базовая цена двухстадийной разработки проектной документации на АСУТП, тыс.руб.",null,{"$f":"C27*C28","v":14.851199999999999},9.0271999999999988,13.3224,31.886399999999995,40.294799999999995,49.139999999999993]
["Коэффициент на стадию Проектная документация",null,0.4,0.4,0.4,0.4,0.4,0.4]
["Коэффициент на стадию Рабочая документация",null,{"$f":"1-C30","v":0.6},0.6,0.6,0.6,0.6,0.6]
["Итого стоимость проектной документации на АСУ ТП:",null,{"$f":"C29*C30","v":5.94048},3.6108799999999999,5.3289600000000004,12.754559999999998,16.117919999999998,19.655999999999999]
["Итого стоимость рабочей документации на АСУ ТП:",null,{"$f":"C31*C29","v":8.9107199999999995},5.4163199999999989,7.9934399999999997,19.131839999999997,24.176879999999997,29.483999999999995]
[]
[null,null,"К",null,"ПД",null,"РД"]
["Итоговая стоимость ПД (сумма ОР, ОО, ИО, ТО, МО, ПО)",null,null,null,{"$f":"SUM(C32:H32)","v":63.408799999999992},null,{"$f":"SUM(C33:H33)","v":95.113199999999992}]
["С учетом коэффициента инфляции",null,25,null,{"$f":"E36*C37","v":1585.2199999999998},null,{"$f":"G36*C37","v":2377.83}]
["С учетом районного коэффициента",null,1.08,null,{"$f":"E37*C38","v":1712.0375999999999},null,{"$f":"G37*C38","v":2568.0563999999999}]
[]
["Итого по смете, тыс. руб.",null,null,null,{"$f":"E38","v":1712.0375999999999},null,{"$f":"G38","v":2568.0563999999999}]
["НДС, 18%",null,null,null,{"$f":"E40*0.18","v":308.16676799999999},null,{"$f":"G40*0.18","v":462.25015199999996}]
["Всего с НДС, тыс. руб.",null,null,null,{"$f":"E40+E41","v":2020.2043679999999},null,{"$f":"G40+G41","v":3030.306552}]
[]
[]
[]
[]
[]
[]
[]
[]
[]
[]
[]
[]
[]
[]
[]
[]
[]
[]
[]
[]
[]
[]
[]
[]
[]
[]
[]
[]
[]
[]
[]
[]
[null,null,null,null,null,null,null,null,null,null,null,null,null,"Основные факторы, определяющие трудоемкость разработки","Количество баллов для частей проектной документации (Бч)"]
[null,null,null,null,null,null,null,null,null,null,null,null,null,null,"ОР","ОО","ИО","ТО","МО","ПО"]
[null,null,null,null,null,null,null,null,null,null,null,null,null,1,2,3,4,5,6,7]
[null,null,null,null,null,null,null,null,null,null,null,null,null,"Непрерывный",1,1,1,1,1,1]
[null,null,null,null,null,null,null,null,null,null,null,null,null,"Полунепрерывный",2,1,2,1,2,2]
[null,null,null,null,null,null,null,null,null,null,null,null,null,"Непрерывно-дискретный - I",3,3,3,3,3,3]
[null,null,null,null,null,null,null,null,null,null,null,null,null,"Непрерывно-дискретный - II",4,3,4,3,4,4]
[null,null,null,null,null,null,null,null,null,null,null,null,null,"Циклический",3,2,3,2,3,3]
[null,null,null,null,null,null,null,null,null,null,null,null,null,"Дискретный",2,2,2,2,3,3]
[null,null,null,null,null,null,null,null,null,null,null,null,null,"до 5",1,1,1,1,1,1]
[null,null,null,null,null,null,null,null,null,null,null,null,null,"св. 5 до 10",2,2,2,2,2,2]
[null,null,null,null,null,null,null,null,null,null,null,null,null,"св. 10 до 20",3,2,3,2,3,3]
[null,null,null,null,null,null,null,null,null,null,null,null,null,"св. 20 до 35",4,3,4,3,4,4]
[null,null,null,null,null,null,null,null,null,null,null,null,null,"св. 35 до 50",5,3,5,3,5,5]
[null,null,null,null,null,null,null,null,null,null,null,null,null,"св. 50 до 70",6,4,6,4,6,6]
[null,null,null,null,null,null,null,null,null,null,null,null,null,"св. 70 до 100",7,5,7,5,7,7]
[null,null,null,null,null,null,null,null,null,null,null,null,null,"2.8.     за каждые 50 свыше 100",1,1,1,1,1,1]
[null,null,null,null,null,null,null,null,null,null,null,null,null,"I степень",1,1,1,1,1,1]
[null,null,null,null,null,null,null,null,null,null,null,null,null,"II степень",3,2,3,3,3,3]
[null,null,null,null,null,null,null,null,null,null,null,null,null,"III степень",6,2,6,5,6,6]
[null,null,null,null,null,null,null,null,null,null,null,null,null,"IV степень",9,3,9,8,9,9]
[null,null,null,null,null,null,null,null,null,null,null,null,null,"I степень",1,1,1,1,1,1]
[null,null,null,null,null,null,null,null,null,null,null,null,null,"II степень",3,2,3,3,3,3]
[null,null,null,null,null,null,null,null,null,null,null,null,null,"III степень",5,2,5,5,5,5]
[null,null,null,null,null,null,null,null,null,null,null,null,null,"IV степень",6,3,7,7,7,7]
[null,null,null,null,null,null,null,null,null,null,null,null,null,"V степень",8,4,10,9,11,11]
[null,null,null,null,null,null,null,null,null,null,null,null,null,"VI степень",9,4,11,10,13,13]
[null,null,null,null,null,null,null,null,null,null,null,null,null,"VII степень",10,5,12,11,14,14]
[null,null,null,null,null,null,null,null,null,null,null,null,null,"Автоматизированный «ручной» режим",1,1,1,1,1,1]
[null,null,null,null,null,null,null,null,null,null,null,null,null,"Автоматизированный режим «советчика»",1,1,2,1,2,2]
[null,null,null,null,null,null,null,null,null,null,null,null,null,"Автоматизированный диалоговый режим",2,2,2,2,3,3]
[null,null,null,null,null,null,null,null,null,null,null,null,null,"Автоматический режим косвенного управления",3,2,3,4,4,4]
[null,null,null,null,null,null,null,null,null,null,null,null,null,"Автоматический режим прямого цифрового управления",5,3,5,7,7,7]
[null,null,null,null,null,null,null,null,null,null,null,null,null,"до 20",1,1,1,1,1,1]
[null,null,null,null,null,null,null,null,null,null,null,null,null,"св. 20 до 50",2,1,2,2,2,2]
[null,null,null,null,null,null,null,null,null,null,null,null,null,"св. 50 до 100",2,2,3,3,3,3]
[null,null,null,null,null,null,null,null,null,null,null,null,null,"св. 100 до 170",3,2,4,4,4,4]
[null,null,null,null,null,null,null,null,null,null,null,null,null,"св. 170 до 250",3,3,5,5,5,5]
[null,null,null,null,null,null,null,null,null,null,null,null,null,"св. 250 до 350",4,3,6,6,6,6]
[null,null,null,null,null,null,null,null,null,null,null,null,null,"св. 350 до 470",4,4,7,7,7,7]
[null,null,null,null,null,null,null,null,null,null,null,null,null,"св. 470 до 600",5,4,8,8,8,8]
[null,null,null,null,null,null,null,null,null,null,null,null,null,"св. 600 до 800",5,5,9,9,9,9]
[null,null,null,null,null,null,null,null,null,null,null,null,null,"св. 800 до 1000",6,5,10,10,10,10]
[null,null,null,null,null,null,null,null,null,null,null,null,null,"св. 1000 до 1300",7,6,11,11,11,11]
[null,null,null,null,null,null,null,null,null,null,null,null,null,"св. 1300 до 1600",8,6,12,12,12,12]
[null,null,null,null,null,null,null,null,null,null,null,null,null,"св. 1600 до 2000",9,7,13,13,13,13]
[null,null,null,null,null,null,null,null,null,null,null,null,null,"6.14.   за каждые 500 свыше 2000",1,1,1,1,1,1]
[null,null,null,null,null,null,null,null,null,null,null,null,null,"до 5",1,1,1,1,1,1]
[null,null,null,null,null,null,null,null,null,null,null,null,null,"св. 5 до 10",2,1,2,2,2,2]
[null,null,null,null,null,null,null,null,null,null,null,null,null,"св. 10 до 20",3,2,3,3,3,3]
[null,null,null,null,null,null,null,null,null,null,null,null,null,"св. 20 до 40",3,2,4,4,4,4]
[null,null,null,null,null,null,null,null,null,null,null,null,null,"св. 40 до 60",4,3,5,5,5,5]
[null,null,null,null,null,null,null,null,null,null,null,null,null,"св. 60 до 90",4,3,6,6,6,6]
[null,null,null,null,null,null,null,null,null,null,null,null,null,"св. 90 до 120",5,4,7,7,7,7]
[null,null,null,null,null,null,null,null,null,null,null,null,null,"св. 120 до 160",5,4,8,8,8,8]
[null,null,null,null,null,null,null,null,null,null,null,null,null,"св. 160 до 200",6,5,9,9,9,9]
[null,null,null,null,null,null,null,null,null,null,null,null,null,"св. 200 до 250",7,5,10,10,10,10]
[null,null,null,null,null,null,null,null,null,null,null,null,null,"св. 250 до 300",8,6,11,11,11,11]
[null,null,null,null,null,null,null,null,null,null,null,null,null,"св. 300 до 350",9,6,12,12,12,12]
[null,null,null,null,null,null,null,null,null,null,null,null,null,"св. 350 до 400",10,7,13,13,13,13]
[null,null,null,null,null,null,null,null,null,null,null,null,null,"7.14.   за каждые 70 свыше 400",1,1,1,1,1,1]